fUSD/lending_fUSD_20250811
["ID","MTS","AMOUNT","RATE_DAILY","PERIOD"]
[378469683,1754877349709,-2449.3,0.00018857,2]
[378469684,1754877349749,-868.19,0.00018857,2]
[378469685,1754877349800,-837.51,0.00018857,2]
[378469686,1754877349840,-1149.72,0.00018857,2]
[378469687,1754877349881,-400.0,0.00018857,2]
[378469688,1754877349915,-400.0,0.00018857,2]
[378469689,1754877349951,-409.29459271,0.00018857,2]
[378469690,1754877349990,-2715.03,0.00018857,2]
[378469691,1754877350031,-405.08180434,0.00018857,2]
[378469692,1754877350068,-428.82676453,0.00018857,2]
[378469693,1754877350105,-780.31,0.00018857,2]
[378469694,1754877350154,-400.0,0.00018857,2]
[378469695,1754877350191,-400.0,0.00018857,2]
[378469696,1754877350225,-1797.89,0.00018857,2]
[378469697,1754877350254,-400.0,0.00018857,2]
[378469698,1754877350292,-403.89944114,0.00018857,2]
[378469699,1754877350320,-400.0,0.00018857,2]
[378469700,1754877350355,-400.98478858,0.00018857,2]
[378469701,1754877350396,-400.0,0.00018857,2]
[378469702,1754877350433,-805.93,0.00018857,2]
[378469703,1754877350503,-572.43,0.00018857,2]
[378469704,1754877350542,-400.0,0.00018857,2]
[378469705,1754877350579,-961.23,0.00018857,2]
[378469706,1754877350616,-1037.13,0.00018857,2]
[378469707,1754877350652,-400.0,0.00018857,2]
[378469708,1754877350688,-400.0,0.00018857,2]
[378469709,1754877350723,-1592.93,0.00018857,2]
[378469710,1754877350757,-625.84,0.00018857,2]
[378469711,1754877350791,-400.0,0.00018857,2]
[378469712,1754877350824,-644.36,0.00018857,2]
[378469713,1754877350858,-400.0,0.00018857,2]
[378469714,1754877350896,-400.0,0.00018857,2]
[378469715,1754877350933,-407.57788434,0.00018857,2]
[378469716,1754877350967,-647.78,0.00018857,2]
[378469717,1754877351008,-1747.07,0.00018857,2]
[378469718,1754877351042,-2229.77,0.00018857,2]
[378469719,1754877351073,-1231.83,0.00018857,2]
[378469720,1754877351105,-400.0,0.00018857,2]
[378469721,1754877351137,-400.0,0.00018857,2]
[378469722,1754877351170,-4532.18,0.00018857,2]
[378469723,1754877351204,-400.0,0.00018857,2]
[378469724,1754877351235,-402.14523331,0.00018857,2]
[378469725,1754877351266,-400.0,0.00018857,2]
[378469726,1754877351297,-400.0,0.00018857,2]
[378469727,1754877351328,-400.0,0.00018857,2]
[378469728,1754877351358,-1178.16,0.00018857,2]
[378469729,1754877351388,-401.94664661,0.00018857,2]
[378469730,1754877351418,-429.36,0.00018857,2]
[378469731,1754877351449,-687.85,0.00018857,2]
[378469732,1754877351480,-1271.47,0.00018857,2]
[378469733,1754877351513,-787.83,0.00018857,2]
[378469734,1754877351543,-400.0,0.00018857,2]
[378469735,1754877351573,-400.0,0.00018857,2]
[378469736,1754877351604,-1006.6,0.00018857,2]
[378469737,1754877351633,-510.74,0.00018857,2]
[378469738,1754877351664,-435.4,0.00018857,2]
[378469739,1754877351693,-1442.82,0.00018857,2]
[378469740,1754877351722,-864.85,0.00018857,2]
[378469741,1754877351772,-400.0,0.00018857,2]
[378469742,1754877351813,-1699.0,0.00018857,2]
[378469743,1754877351851,-1129.98,0.00018857,2]
[378469744,1754877351890,-911.53,0.00018857,2]
[378469745,1754877351924,-1043.68,0.00018857,2]
[378469746,1754877351958,-1092.76,0.00018857,2]
[378469747,1754877351991,-400.0,0.00018857,2]
[378469748,1754877352023,-400.0,0.00018857,2]
[378469749,1754877352056,-3593.55,0.00018857,2]
[378469750,1754877352088,-400.0,0.00018857,2]
[378469751,1754877352118,-407.24388588,0.00018857,2]
[378469752,1754877352149,-400.0,0.00018857,2]
[378469753,1754877352179,-414.49688258,0.00018857,2]
[378469754,1754877352217,-941.43,0.00018857,2]
[378469755,1754877352254,-400.0,0.00018857,2]
[378469756,1754877352289,-1206.32,0.00018857,2]
[378469757,1754877352324,-400.0,0.00018857,2]
[378469758,1754877352357,-908.92,0.00018857,2]
[378469759,1754877352390,-710.84,0.00018857,2]
[378469760,1754877352423,-400.0,0.00018857,2]
[378469761,1754877352454,-400.0,0.00018857,2]
[378469762,1754877352486,-1535.17,0.00018857,2]
[378469763,1754877352517,-400.0,0.00018857,2]
[378469764,1754877352548,-404.8978207,0.00018857,2]
[378469765,1754877352580,-900.88,0.00018857,2]
[378469766,1754877352611,-400.0,0.00018857,2]
[378469767,1754877352641,-444.1232463,0.00018857,2]
[378469768,1754877352671,-576.88,0.00018857,2]
[378469769,1754877352702,-400.0,0.00018857,2]
[378469770,1754877352732,-1199.4,0.00018857,2]
[378469771,1754877352762,-400.0,0.00018857,2]
[378469772,1754877352791,-400.0,0.00018857,2]
[378469773,1754877352821,-1296.68,0.00018857,2]
[378469774,1754877352851,-400.0,0.00018857,2]
[378469775,1754877352882,-401.63,0.00018857,2]
[378469776,1754877352911,-400.0,0.00018857,2]
[378469777,1754877352942,-402.0641947,0.00018857,2]
[378469778,1754877352971,-964.87,0.00018857,2]
[378469779,1754877353000,-560.14,0.00018857,2]
[378469780,1754877353029,-666.18,0.00018857,2]
[378469781,1754877353061,-580.73,0.00018857,2]
[378469782,1754877353598,-400.0,0.00018857,2]
[378469783,1754877353624,-1520.95,0.00018857,2]
[378469784,1754877353647,-400.0,0.00018857,2]
[378469785,1754877353675,-400.0,0.00018857,2]
[378469786,1754877353698,-405.56612679,0.00018857,2]
[378469787,1754877353721,-642.85,0.00018857,2]
[378469788,1754877353746,-731.96,0.00018857,2]
[378469789,1754877353770,-400.0,0.00018857,2]
[378469790,1754877353794,-1057.05,0.00018857,2]
[378469791,1754877353817,-1044.59,0.00018857,2]
[378469792,1754877353841,-403.74,0.00018857,2]
[378469793,1754877353864,-1747.0,0.00018857,2]
[378469794,1754877353887,-403.49360814,0.00018857,2]
[378469795,1754877353912,-410.88,0.00018857,2]
[378469796,1754877353935,-400.0,0.00018857,2]
[378469797,1754877353959,-1417.15,0.00018857,2]
[378469798,1754877353983,-1144.37,0.00018857,2]
[378469799,1754877354007,-400.0,0.00018857,2]
[378469800,1754877354030,-410.63396073,0.00018857,2]
[378469801,1754877354053,-400.0,0.00018857,2]
[378469802,1754877354078,-400.0,0.00018857,2]
[378469803,1754877354101,-1599.73,0.00018857,2]
[378469804,1754877354125,-400.0,0.00018857,2]
[378469805,1754877354150,-796.93,0.00018857,2]
[378469806,1754877354176,-666.82,0.00018857,2]
[378469807,1754877354201,-375.65069691,0.00018857,2]
[378469808,1754877354225,-1788.26,0.00018857,2]
[378469809,1754877354249,-573.42,0.00018857,2]
[378469810,1754877354273,-546.3,0.00018857,2]
[378469811,1754877354296,-401.18866777,0.00018857,2]
[378469812,1754877354321,-400.0,0.00018857,2]
[378469813,1754877354346,-575.22,0.00018857,2]
[378469814,1754877354369,-400.0,0.00018857,2]
[378469815,1754877354393,-684.55,0.00018857,2]
[378469816,1754877354419,-400.0,0.00018857,2]
[378469817,1754877354444,-500.0,0.00018857,2]
[378469818,1754877354468,-2181.69,0.00018857,2]
[378469819,1754877354493,-960.96,0.00018857,2]
[378469820,1754877354518,-3514.44,0.00018857,2]
[378469821,1754877354543,-400.0,0.00018857,2]
[378469822,1754877354566,-403.65,0.00018857,2]
[378469823,1754877354589,-702.48,0.00018857,2]
[378469824,1754877354612,-401.8563066,0.00018857,2]
[378469825,1754877354635,-1020.51,0.00018857,2]
[378469826,1754877354659,-591.51,0.00018857,2]
[378469827,1754877354683,-400.0,0.00018857,2]
[378469828,1754877354706,-615.93,0.00018857,2]
[378469829,1754877354731,-1634.75,0.00018857,2]
[378469830,1754877354755,-661.96,0.00018857,2]
[378469831,1754877354777,-1883.53,0.00018857,2]
[378469832,1754877354801,-643.12,0.00018857,2]
[378469833,1754877354824,-375.30961589,0.00018857,2]
[378469834,1754877354846,-400.0,0.00018857,2]
[378469835,1754877354869,-400.0,0.00018857,2]
[378469836,1754877354897,-1311.23,0.00018857,2]
[378469837,1754877354922,-1335.73,0.00018857,2]
[378469838,1754877354946,-400.0,0.00018857,2]
[378469839,1754877354971,-1697.04,0.00018857,2]
[378469840,1754877354995,-1395.24,0.00018857,2]
[378469841,1754877355020,-400.0,0.00018857,2]
[378469842,1754877355044,-1057.11,0.00018857,2]
[378469843,1754877355068,-916.03,0.00018857,2]
[378469844,1754877355094,-2280.97,0.00018857,2]
[378469845,1754877355119,-1544.96,0.00018857,2]
[378469846,1754877355146,-5116.14,0.00018858,2]
[378469847,1754877355169,-471.9,0.00018858,2]
[378469848,1754877355195,-450.74,0.00018858,2]
[378469849,1754877355219,-1797.89,0.00018858,2]
[378469850,1754877355243,-576.78,0.00018858,2]
[378469851,1754877355267,-1675.08,0.00018858,2]
[378469852,1754877355291,-400.0,0.00018858,2]
[378469853,1754877355315,-400.0,0.00018858,2]
[378469854,1754877355338,-1898.1,0.00018858,2]
[378469855,1754877355362,-652.22,0.00018858,2]
[378469856,1754877355386,-1923.87,0.00018858,2]
[378469857,1754877355413,-3348.91,0.00018858,2]
[378469858,1754877355436,-966.4,0.00018858,2]
[378469859,1754877355460,-872.97,0.00018858,2]
[378469860,1754877355485,-1049.12,0.00018858,2]
[378469861,1754877355510,-2183.66,0.00018858,2]
[378469862,1754877355534,-601.42,0.00018858,2]
[378469863,1754877355560,-12556.2,0.00018858,2]
[378469864,1754877355584,-1914.47,0.00018858,2]
[378469865,1754877355607,-838.03,0.00018858,2]
[378469866,1754877355631,-941.07,0.00018858,2]
[378469867,1754877355655,-606.25,0.00018858,2]
[378469868,1754877355679,-427.68,0.00018858,2]
[378469869,1754877355704,-663.39,0.00018858,2]
[378469870,1754877355728,-1358.72,0.00018858,2]
[378469871,1754877355756,-2025.63,0.00018858,2]
[378469872,1754877355780,-2570.86,0.00018858,2]
[378469873,1754877355804,-2199.12,0.00018858,2]
[378469874,1754877355827,-1806.94,0.00018858,2]
[378469875,1754877355851,-2662.7102688,0.00018868,2]
[378469876,1754877355877,-150.0,0.00018869,2]
[378469877,1754877355906,-1000.0,0.00018873,2]
[378469878,1754877355930,-160.0,0.0001888,2]
[378469879,1754877355954,-842.72722232,0.0001888,2]
[378469880,1754877355979,-211.70500488,0.0001888,2]
[378469881,1754877356004,-457.79793389,0.0001888,2]
[378469882,1754877356030,-2662.7102688,0.00018884,2]
[378469883,1754877356058,-150.0,0.00018893,2]
[378469884,1754877356084,-4271.25272131,0.000189,2]
[378469885,1754877356109,-161.59854017,0.000189,2]
[378469886,1754877356135,-2662.7102688,0.000189,2]
[378469887,1754877356161,-520.74052852,0.00018918,2]
[378469888,1754877356190,-1000.0,0.00018923,2]
[378469889,1754877356409,-150.0,0.00018941,2]
[378469890,1754877356458,-530.24916021,0.00018947,2]
[378469891,1754877356482,-150.0,0.00018955,2]
[378469892,1754877356507,-272.77588585,0.00018956,2]
[378469893,1754877356531,-197.43611932,0.00018956,2]
[378469894,1754877356555,-197.43611932,0.00018957,2]
[378469895,1754877356580,-197.43611932,0.00018958,2]
[378469896,1754877356605,-272.77588585,0.0001896,2]
[378469897,1754877356629,-197.43611932,0.00018962,2]
[378469898,1754877356654,-530.24916021,0.0001897,2]
[378469899,1754877356679,-500.0,0.00018973,2]
[378469900,1754877356701,-500.0,0.00018973,2]
[378469901,1754877356725,-442.52964068,0.00018973,2]
[378469902,1754877356748,-502.21898686,0.00018973,2]
[378469903,1754877356771,-508.58498621,0.00018973,2]
[378469904,1754877356795,-322.92119442,0.00018973,2]
[378469905,1754877356818,-500.0,0.00018973,2]
[378469906,1754877356841,-502.90418228,0.00018973,2]
[378469907,1754877356864,-500.0,0.00018973,2]
[378469908,1754877356889,-524.74920819,0.00018973,2]
[378469909,1754877356913,-500.0,0.00018973,2]
[378469910,1754877356938,-503.71569687,0.00018973,2]
[378469911,1754877356963,-500.0,0.00018973,2]
[378469912,1754877356987,-500.0,0.00018973,2]
[378469913,1754877357011,-504.94078322,0.00018973,2]
[378469914,1754877357036,-272.77588585,0.00018976,2]
[378469915,1754877357061,-3696.919,0.00018977,2]
[378469916,1754877357085,-183.493,0.00018977,2]
[378469917,1754877357110,-272.77588585,0.00018981,2]
[378469918,1754877357135,-197.43611932,0.00018982,2]
[378469919,1754877357159,-530.24916021,0.00018983,2]
[378469920,1754877357185,-530.24916021,0.00018983,2]
[378469921,1754877357211,-530.24916021,0.00018988,2]
[378469922,1754877357237,-150.0,0.00018988,2]
[378469923,1754877357260,-294.6400242,0.00018989,2]
[378469924,1754877357284,-160.0,0.00018989,2]
[378469925,1754877357309,-500.0,0.00018989,2]
[378469926,1754877357334,-500.0,0.00018989,2]
[378469927,1754877357358,-245.01987475,0.00018989,2]
[378469928,1754877357383,-231.28369723,0.00018989,2]
[378469929,1754877357407,-500.0,0.00018989,2]
[378469930,1754877357435,-500.0,0.00018989,2]
[378469931,1754877357459,-500.0,0.00018989,2]
[378469932,1754877357483,-200.0,0.00018989,2]
[378469933,1754877357509,-264.47577467,0.00018989,2]
[378469934,1754877357533,-154.33603957,0.00018989,2]
[378469935,1754877357557,-600.0,0.00018989,2]
[378469936,1754877357584,-571.5660442,0.00018989,2]
[378469937,1754877357609,-232.72727137,0.00018989,2]
[378469938,1754877357633,-250.0,0.00018989,2]
[378469939,1754877357658,-362.89527077,0.00018989,2]
[378469940,1754877357684,-4496.15507419,0.00018989,2]
[378469941,1754877357708,-500.0,0.00018989,2]
[378469942,1754877357732,-376.65138784,0.00018989,2]
[378469943,1754877357755,-240.10378857,0.00018989,2]
[378469944,1754877357779,-500.0,0.00018989,2]
[378469945,1754877357803,-500.0,0.00018989,2]
[378469946,1754877357827,-186.97950094,0.00018989,2]
[378469947,1754877357852,-151.0,0.00018989,2]
[378469948,1754877357876,-346.92554585,0.00018989,2]
[378469949,1754877357905,-151.0,0.00018989,2]
[378469950,1754877357930,-151.0,0.00018989,2]
[378469951,1754877357955,-173.32783068,0.00018989,2]
[378469952,1754877357981,-272.77588585,0.0001899,2]
[378469953,1754877358007,-1797.89,0.00018998,2]
[378469954,1754877358033,-576.78,0.00018998,2]
[378469955,1754877358058,-567.7,0.00018998,2]
[378469956,1754877358082,-1797.89,0.00018999,2]
[378469957,1754877358105,-1797.89,0.00018999,2]
[378469958,1754877358129,-1797.89,0.00018999,2]
[378469959,1754877358152,-1797.89,0.00018999,2]
[378469960,1754877358176,-1797.89,0.00018999,2]
[378469961,1754877358201,-1797.89,0.00018999,2]
[378469962,1754877358225,-1797.89,0.00018999,2]
[378469963,1754877358250,-1797.89,0.00018999,2]
[378469964,1754877358273,-1797.89,0.00018999,2]
[378469965,1754877358296,-1797.89,0.00018999,2]
[378469966,1754877358320,-576.78,0.00018999,2]
[378469967,1754877358342,-576.78,0.00018999,2]
[378469968,1754877358365,-576.78,0.00018999,2]
[378469969,1754877358469,-576.78,0.00018999,2]
[378469970,1754877358493,-576.78,0.00018999,2]
[378469971,1754877358516,-576.78,0.00018999,2]
[378469972,1754877358540,-576.78,0.00018999,2]
[378469973,1754877358564,-1797.89,0.00018999,2]
[378469974,1754877358588,-576.78,0.00018999,2]
[378469975,1754877358612,-1797.89,0.00018999,2]
[378469976,1754877358636,-576.78,0.00018999,2]
[378469977,1754877358660,-1797.89,0.00018999,2]
[378469978,1754877358684,-576.78,0.00018999,2]
[378469979,1754877358707,-1797.89,0.00018999,2]
[378469980,1754877358730,-576.78,0.00018999,2]
[378469981,1754877358755,-576.78,0.00018999,2]
[378469982,1754877358779,-1797.89,0.00018999,2]
[378469983,1754877358802,-576.78,0.00018999,2]
[378469984,1754877358826,-1797.89,0.00018999,2]
[378469985,1754877358850,-1797.89,0.00018999,2]
[378469986,1754877358874,-576.78,0.00018999,2]
[378469987,1754877358900,-1797.89,0.00018999,2]
[378469988,1754877358927,-576.78,0.00018999,2]
[378469989,1754877358952,-576.78,0.00018999,2]
[378469990,1754877358978,-1797.89,0.00018999,2]
[378469991,1754877359001,-576.78,0.00018999,2]
[378469992,1754877359024,-1797.89,0.00018999,2]
[378469993,1754877359048,-1797.92257862,0.00018999,2]
[378469994,1754877359072,-576.78,0.00018999,2]
[378469995,1754877359096,-576.78,0.00018999,2]
[378469996,1754877359121,-576.78,0.00018999,2]
[378469997,1754877359145,-576.81112645,0.00018999,2]
[378469998,1754877359170,-1797.96,0.00018999,2]
[378469999,1754877359195,-400.0,0.00018999,2]
[378470000,1754877359220,-1578.9,0.00018999,2]
[378470001,1754877359243,-726.62,0.00018999,2]
[378470002,1754877359266,-427.66,0.00018999,2]
[378470003,1754877359289,-471.94,0.00018999,2]
[378470004,1754877359313,-1496.59,0.00018999,2]
[378470005,1754877359337,-1500.76,0.00018999,2]
[378470006,1754877359360,-556.49,0.00018999,2]
[378470007,1754877359383,-25454.91014105,0.00019,2]
[378470008,1754877359409,-222791.18020496,0.00019,2]
[378470170,1754877407034,4086.49,0.00017936,2]
[378470171,1754877443757,188.71,0.00017889,2]
[378470172,1754877444007,188.71,0.00026834,120]
[378470174,1754877496661,5360.34,0.00017855,2]
[378470176,1754877554983,200.0,0.00017853,2]
[378470178,1754877605564,182.0,0.00027371,120]
[378470179,1754877682785,1000.0,0.00017942,2]
[378470182,1754877748820,153.91,0.00017831,2]
[378470183,1754877749052,153.91,0.00017843,2]
[378470184,1754877749303,153.91,0.00017854,2]
[378470185,1754877749528,153.91,0.00017866,2]
[378470186,1754877749739,153.91,0.00017878,2]
[378470187,1754877750240,153.91,0.0001789,2]
[378470188,1754877750454,153.91,0.00017902,2]
[378470189,1754877750626,153.91,0.00017914,2]
[378470190,1754877750835,153.91,0.00017926,2]
[378470191,1754877751075,153.91,0.00017938,2]
[378470192,1754877751276,153.91,0.0001795,2]
[378470193,1754877751485,153.91,0.00017961,2]
[378470194,1754877751879,153.91,0.00017973,2]
[378470195,1754877751935,153.91,0.00017985,2]
[378470196,1754877752143,153.91,0.00017997,2]
[378470198,1754877834367,164.62,0.00017823,2]
[378470199,1754877855759,155.87,0.0003013,120]
[378470203,1754877912258,150.0,0.00017088,2]
[378470204,1754877915566,511.0,0.00017822,2]
[378470205,1754877915679,150.0,0.00017088,2]
[378470206,1754877916165,150.0,0.00017088,2]
[378470207,1754877919664,155.04427211,0.00017088,2]
[378470208,1754877920878,154.47469222,0.00017088,2]
[378470211,1754877928532,153.63160779,0.00017088,2]
[378470213,1754877928849,7589.04,0.00017818,2]
[378470312,1754878030136,171.85,0.00030137,120]
[378470313,1754878031936,170.0,0.00017806,7]
[378470314,1754878045413,1000.0,0.0003,120]
[378470320,1754878170254,277.82945893,0.000301,120]
[378470325,1754878231845,-168.66542,0.00021,30]
[378470326,1754878231869,-168.66542,0.00021,30]
[378470327,1754878231893,-168.66542,0.00021,30]
[378470328,1754878231915,-168.66542,0.00021,30]
[378470329,1754878231938,-168.66543,0.00021,30]
[378470335,1754878232298,-3460.57,0.00024685,30]
[378470336,1754878232330,-162.46989869,0.000248,30]
[378470337,1754878232515,-153.91,0.00018009,2]
[378470338,1754878232525,-300.0,0.00018181,2]
[378470339,1754878232535,-180.95,0.00018354,2]
[378470341,1754878232544,-310.87,0.00018471,2]
[378470342,1754878232553,-33.08173673,0.00018701,2]
[378470345,1754878232573,-134.91826327,0.00018701,2]
[378470347,1754878232583,-164.62,0.00018714,2]
[378470348,1754878232592,-150.0,0.00018735,2]
[378470349,1754878232601,-1200.0,0.00018745,2]
[378470350,1754878232611,-231.28369723,0.00018746,2]
[378470351,1754878232621,-1772.4657179,0.00018746,2]
[378470352,1754878232632,-410.85238397,0.00018746,2]
[378470353,1754878232641,-150.0,0.00018746,2]
[378470354,1754878232650,-300.0,0.00018754,2]
[378470355,1754878232660,-150.0,0.00018755,2]
[378470356,1754878232669,-547.72549596,0.00018756,2]
[378470357,1754878232678,-390.66594496,0.00018756,2]
[378470358,1754878232687,-178.55467357,0.00018756,2]
[378470359,1754878232696,-278.70150154,0.00018756,2]
[378470360,1754878232708,-385.34897594,0.00018756,2]
[378470361,1754878232717,-152.8,0.00018757,2]
[378470362,1754878232726,-1000.0,0.00018757,2]
[378470363,1754878232736,-287.4008591,0.00018757,2]
[378470364,1754878232746,-222.46830554,0.00018757,2]
[378470365,1754878232755,-390.66594477,0.00018764,2]
[378470366,1754878232765,-150.0,0.00018766,2]
[378470367,1754878232775,-150.0,0.00018769,2]
[378470368,1754878232784,-390.66594477,0.00018771,2]
[378470369,1754878232794,-664.05047744,0.00018772,2]
[378470370,1754878232803,-287.40085902,0.00018773,2]
[378470371,1754878232813,-390.66594477,0.00018779,2]
[378470372,1754878232822,-150.0,0.00018781,2]
[378470373,1754878232831,-150.0,0.00018781,2]
[378470374,1754878232840,-254.0,0.00018786,2]
[378470375,1754878232849,-390.66594477,0.00018786,2]
[378470376,1754878232858,-664.05047744,0.00018788,2]
[378470377,1754878232869,-287.40085902,0.00018789,2]
[378470378,1754878232878,-150.0,0.0001879,2]
[378470379,1754878232888,-150.0,0.00018791,2]
[378470380,1754878232897,-150.0,0.00018791,2]
[378470381,1754878232907,-150.0,0.00018793,2]
[378470382,1754878232916,-390.66594477,0.00018794,2]
[378470383,1754878232926,-358.03014515,0.00018795,2]
[378470384,1754878232951,-641.96985485,0.00018795,2]
[378470385,1754878232960,-150.0,0.00018796,2]
[378470386,1754878232970,-290.43014515,0.000188,2]
[378470387,1754878232981,-69.34985485,0.000188,2]
[378470388,1754878232990,-218.51209975,0.000188,2]
[378470389,1754878233001,-249.32790025,0.000188,2]
[378470390,1754878233011,-467.84,0.000188,2]
[378470391,1754878233020,-835.30119201,0.00018801,2]
[378470392,1754878233039,-1428.79967963,0.00018801,2]
[378470393,1754878233049,-390.66594477,0.00018801,2]
[378470394,1754878233058,-150.0,0.00018802,2]
[378470395,1754878233068,-664.05047744,0.00018804,2]
[378470396,1754878233077,-287.40085902,0.00018805,2]
[378470397,1754878233088,-152.96830423,0.00018809,2]
[378470398,1754878233098,-390.66594477,0.00018809,2]
[378470399,1754878233108,-420.34170628,0.0001881,2]
[378470400,1754878233118,-200.0,0.0001881,2]
[378470401,1754878233128,-160.0,0.0001881,2]
[378470402,1754878233142,-14.30440723,0.0001881,2]
[378470480,1754878239427,-284.18985023,0.0001881,2]
[378470482,1754878239437,-518.99826484,0.0001881,2]
[378470484,1754878239446,-250.0,0.0001881,2]
[378470485,1754878239455,-304.53364997,0.0001881,2]
[378470486,1754878239464,-358.21426,0.0001881,2]
[378470487,1754878239473,-390.66594477,0.00018817,2]
[378470488,1754878239482,-150.0,0.00018817,2]
[378470489,1754878239491,-664.05047744,0.0001882,2]
[378470490,1754878239500,-287.40085902,0.00018821,2]
[378470491,1754878239509,-390.66594477,0.00018824,2]
[378470492,1754878239520,-150.0,0.00018828,2]
[378470493,1754878239529,-94.67537838,0.0001883,2]
[378470494,1754878239540,-55.32462162,0.0001883,2]
[378470495,1754878239549,-390.66594477,0.00018832,2]
[378470496,1754878239558,-747.16475409,0.00018834,2]
[378470497,1754878239567,-168.0,0.00018834,2]
[378470498,1754878239576,-185.0,0.00018835,2]
[378470499,1754878239585,-150.0,0.00018836,2]
[378470500,1754878239594,-664.05047744,0.00018836,2]
[378470501,1754878239603,-287.40085902,0.00018836,2]
[378470502,1754878239613,-390.66594477,0.00018839,2]
[378470503,1754878239622,-150.0,0.00018842,2]
[378470504,1754878239631,-1443.66,0.00018846,2]
[378470505,1754878239640,-390.66594477,0.00018847,2]
[378470506,1754878239649,-200.0,0.00018848,2]
[378470507,1754878239658,-150.0,0.0001885,2]
[378470508,1754878239667,-664.05047744,0.00018852,2]
[378470510,1754878239677,-287.40085902,0.00018852,2]
[378470511,1754878239686,-251.0,0.00018853,2]
[378470513,1754878239695,-390.66594477,0.00018855,2]
[378470515,1754878239705,-823.58,0.00018855,2]
[378470517,1754878239714,-772.01,0.00018855,2]
[378470519,1754878239724,-1713.29,0.00018855,2]
[378470521,1754878239733,-401.58818474,0.00018855,2]
[378470523,1754878239743,-735.15,0.00018855,2]
[378470525,1754878239752,-401.89174929,0.00018855,2]
[378470527,1754878239761,-400.0,0.00018855,2]
[378470529,1754878239771,-400.0,0.00018855,2]
[378470531,1754878239780,-573.19,0.00018855,2]
[378470533,1754878239789,-1236.67,0.00018855,2]
[378470535,1754878239798,-400.0,0.00018855,2]
[378470537,1754878239807,-501.51396863,0.00018855,2]
[378470539,1754878239816,-1018.99,0.00018855,2]
[378470541,1754878239825,-401.73041535,0.00018855,2]
[378470543,1754878239834,-402.67320549,0.00018855,2]
[378470545,1754878239843,-400.0,0.00018855,2]
[378470547,1754878239852,-401.74444445,0.00018855,2]
[378470549,1754878239862,-400.0,0.00018855,2]
[378470551,1754878239872,-813.21,0.00018855,2]
[378470553,1754878239881,-948.98,0.00018855,2]
[378470555,1754878239890,-639.988812,0.00018855,2]
[378470557,1754878239900,-631.84,0.00018855,2]
[378470559,1754878239909,-4324.36,0.00018855,2]
[378470561,1754878239918,-151.264254,0.00018855,2]
[378470563,1754878239928,-1359.34,0.00018855,2]
[378470565,1754878239938,-604.39,0.00018855,2]
[378470567,1754878239947,-1227.31,0.00018855,2]
[378470569,1754878239956,-676.934895,0.00018855,2]
[378470571,1754878239966,-387.354449,0.00018855,2]
[378470573,1754878239975,-1873.77,0.00018855,2]
[378470575,1754878239984,-3843.91,0.00018855,2]
[378470577,1754878239993,-400.0,0.00018855,2]
[378470579,1754878240002,-2063.46,0.00018855,2]
[378470581,1754878240011,-400.0,0.00018855,2]
[378470583,1754878240021,-400.0,0.00018855,2]
[378470585,1754878240030,-1690.56,0.00018855,2]
[378470587,1754878240040,-826.92,0.00018855,2]
[378470589,1754878240049,-500.0,0.00018855,2]
[378470591,1754878240058,-962.9,0.00018855,2]